fUSD/lending_fUSD_20260412
["ID","MTS","AMOUNT","RATE_DAILY","PERIOD"]
[420330235,1775971909132,-872.12,0.0004468,99]
[420330236,1775971909154,-461.0,0.00044686,120]
[420330237,1775971909165,-2006.56,0.0004469,120]
[420330238,1775971909203,-914.68266039,0.00044691,120]
[420330239,1775971909256,-8043.84680696,0.000447,7]
[420330240,1775971909276,-1800.0,0.000447,30]
[420330241,1775971909317,-825.0,0.00044701,90]
[420330242,1775971909370,-492.83375056,0.00044704,60]
[420330243,1775971909393,-203.85838449,0.00044705,120]
[420330244,1775971909513,-279.49346834,0.0004471,30]
[420330245,1775971909547,-250.0,0.00044712,102]
[420330246,1775971909573,-500.0,0.00044712,2]
[420330247,1775971909598,-720.0,0.00044713,2]
[420330248,1775971909609,-96704.98953373,0.00044713,7]
[420330249,1775971909626,-152.23461022,0.00044713,104]
[420330250,1775971909653,-151.0,0.00044713,120]
[420330251,1775971909682,-974.199311,0.00044713,120]
[420330252,1775971909714,-974.199311,0.00044713,120]
[420330253,1775971909728,-974.199311,0.00044713,120]
[420330254,1775971909757,-974.199311,0.00044713,120]
[420330255,1775971909780,-243.35071,0.00044713,120]
[420330256,1775971909792,-151.0,0.00044713,120]
[420330257,1775971909820,-243.35071,0.00044713,120]
[420330258,1775971909833,-151.0,0.00044713,120]
[420330259,1775971909848,-151.0,0.00044713,35]
[420330260,1775971909876,-243.35071,0.00044713,120]
[420330261,1775971909887,-151.0,0.00044713,120]
[420330262,1775971909906,-243.35071,0.00044713,120]
[420330263,1775971909917,-151.0,0.00044713,35]
[420330264,1775971909940,-151.0,0.00044713,120]
[420330265,1775971909951,-151.0,0.00044713,120]
[420330266,1775971909966,-151.0,0.00044713,120]
[420330267,1775971909994,-156.338718,0.00044713,120]
[420330268,1775971910005,-151.0,0.00044713,120]
[420330269,1775971910023,-151.0,0.00044713,120]
[420330270,1775971910039,-1763.66379,0.00044713,120]
[420330271,1775971910050,-786.216846,0.00044713,120]
[420330272,1775971910069,-390.246609,0.00044713,120]
[420330273,1775971910083,-151.0,0.00044713,120]
[420330274,1775971910093,-1763.66379,0.00044713,120]
[420330275,1775971910112,-786.216846,0.00044713,120]
[420330276,1775971910132,-390.246609,0.00044713,120]
[420330277,1775971910142,-151.0,0.00044713,120]
[420330278,1775971910161,-1763.66379,0.00044713,120]
[420330279,1775971910174,-786.216846,0.00044713,120]
[420330280,1775971910185,-390.246609,0.00044713,120]
[420330281,1775971910199,-235.686315,0.00044713,120]
[420330282,1775971910215,-1763.66379,0.00044713,120]
[420330283,1775971910226,-786.216846,0.00044713,120]
[420330284,1775971910239,-390.246609,0.00044713,120]
[420330285,1775971910265,-235.686315,0.00044713,120]
[420330286,1775971910276,-2738.177276,0.00044713,120]
[420330287,1775971910285,-235.686315,0.00044713,120]
[420330288,1775971910295,-2738.177276,0.00044713,120]
[420330289,1775971910312,-235.686315,0.00044713,120]
[420330290,1775971910322,-2738.177276,0.00044713,120]
[420330291,1775971910331,-2738.177276,0.00044713,120]
[420330292,1775971910341,-151.0,0.00044713,120]
[420330293,1775971910360,-151.0,0.00044713,120]
[420330294,1775971910369,-151.0,0.00044713,120]
[420330295,1775971910391,-151.0,0.00044713,120]
[420330296,1775971910401,-151.0,0.00044713,120]
[420330297,1775971910411,-151.0,0.00044713,120]
[420330298,1775971910427,-151.0,0.00044713,120]
[420330299,1775971910443,-151.0,0.00044713,120]
[420330300,1775971910453,-151.0,0.00044713,120]
[420330301,1775971910468,-151.0,0.00044713,120]
[420330302,1775971910478,-151.0,0.00044713,120]
[420330303,1775971910489,-151.0,0.00044713,120]
[420330304,1775971910510,-2021.455231,0.00044713,120]
[420330305,1775971910521,-2021.455231,0.00044713,120]
[420330306,1775971910530,-2021.455231,0.00044713,120]
[420330307,1775971910541,-2021.455231,0.00044713,120]
[420330308,1775971910556,-162.289611,0.00044713,120]
[420330309,1775971910567,-162.289611,0.00044713,120]
[420330310,1775971910577,-162.289611,0.00044713,120]
[420330311,1775971910588,-162.289611,0.00044713,120]
[420330312,1775971910598,-226.191162,0.00044713,120]
[420330313,1775971910609,-226.191162,0.00044713,120]
[420330314,1775971910619,-226.191162,0.00044713,120]
[420330315,1775971910638,-226.191162,0.00044713,120]
[420330316,1775971910648,-296.6,0.00044718,30]
[420330317,1775971910659,-1045.43704991,0.00044718,50]
[420330318,1775971910670,-1186.82248622,0.00044718,50]
[420330319,1775971910681,-500.0,0.00044726,120]
[420330320,1775971910691,-150.0,0.00044736,120]
[420330321,1775971910700,-492.83375056,0.0004476,60]
[420330322,1775971910713,-371.1,0.00044766,120]
[420330323,1775971910734,-500.0,0.00044777,120]
[420330324,1775971910744,-48475.75,0.00044778,120]
[420330325,1775971910754,-151.0,0.00044778,120]
[420330326,1775971910766,-1000.0,0.00044784,14]
[420330327,1775971910779,-157.08828878,0.00044796,2]
[420330328,1775971911267,-2019.40811064,0.000448,30]
[420330329,1775971911302,-137199.45643837,0.000448,95]
[420330330,1775971913595,231.84,0.00028082,120]
[420330331,1775971913725,-760.0,0.00024226,10]
[420330332,1775971913745,-1131.16245673,0.00029522,2]
[420330333,1775971913758,-511.5,0.00029522,2]
[420330334,1775971913773,-481.3395008,0.00029522,2]
[420330335,1775971913811,-732.23943309,0.00029522,2]
[420330336,1775971913827,-918.75860938,0.00029522,2]
[420330337,1775971913927,-3052.868,0.00032522,2]
[420330338,1775971913939,-1760.5330426,0.000448,95]
[420330339,1775971913976,-1452.55871404,0.000448,95]
[420330340,1775971914043,231.84,0.00028658,120]
[420330341,1775971914128,-607.53665363,0.00013899,2]
[420330342,1775971914138,-1000.0,0.00044138,14]
[420330343,1775971914151,-59587.45180499,0.000448,95]
[420330344,1775971914179,-40420.31024295,0.000448,100]
[420330345,1775971914193,-13207.29364183,0.000448,100]
[420330346,1775971914378,231.84,0.00029233,120]
[420330347,1775971914665,231.84,0.00029808,120]
[420330348,1775972021247,2993.0,0.00029987,120]
[420330349,1775972099723,1444.0,0.00026137,120]
[420330350,1775972109902,649.61,0.00030137,120]
[420330351,1775972114557,150.0,0.00016,120]
[420330352,1775972152516,3500.0,0.0003013,120]
[420330353,1775972281163,150.0,0.00016,120]
[420330354,1775972342162,561.753071,0.00023296,120]
[420330355,1775972367432,200.0,0.0003,120]
[420330356,1775972404388,611.69,0.00027397,120]
[420330357,1775972404704,611.69,0.00027644,120]
[420330358,1775972405092,611.7,0.0002789,120]
[420330359,1775972426879,200.0,0.0003,120]
[420330360,1775972467513,248.88,0.00016,120]
[420330361,1775972478186,200.0,0.0003,120]
[420330362,1775972508528,500.0,0.00030136,120]
[420330363,1775972509317,1000.0,0.0003,120]
[420330379,1775972788375,594.84620455,0.00030136,120]
[420330380,1775972849094,1444.0,0.00026137,120]
[420330381,1775972971850,1000.0,0.0003013,120]
[420330382,1775972986746,1000.0,0.0003013,120]
[420330384,1775973019089,1600.0,0.00026099,120]
[420330385,1775973031550,-1200.0,0.00013599,2]
[420330386,1775973031567,-357.0,0.00013599,2]
[420330387,1775973031577,-688.88125224,0.000136,2]
[420330388,1775973031591,-351.95748645,0.000136,2]
[420330389,1775973031728,-530.12669042,0.000136,2]
[420330390,1775973031759,-8619.67861961,0.000136,2]
[420330391,1775973031786,-494.97495455,0.000136,2]
[420330392,1775973031834,-753.08345875,0.000136,2]
[420330393,1775973031846,-32721.21489457,0.000136,2]
[420330394,1775973031858,-500.0,0.00013674,3]
[420330395,1775973031875,-156.68,0.00013688,2]
[420330396,1775973031886,-158.47,0.0001374,2]
[420330397,1775973031896,-351.46,0.00013897,2]
[420330398,1775973031906,-500.0,0.00013899,2]
[420330399,1775973031924,-500.0,0.00013899,2]
[420330400,1775973031933,-2424.078,0.0001393,2]
[420330401,1775973031943,-176.164,0.0001393,2]
[420330414,1775973032343,-180093.59321408,0.00013973,2]
[420330415,1775973032357,-11909.3539933,0.00013973,2]
[420330416,1775973032404,-32210.94539659,0.00013973,2]
[420330417,1775973032426,-49892.67282073,0.00013973,2]
[420330418,1775973033531,1000.0,0.0003013,120]
[420330421,1775973037980,-500.0,0.00013972,2]
[420330422,1775973037994,-500.0,0.00013972,2]
[420330423,1775973038006,-500.0,0.00013972,2]
[420330424,1775973038016,-461.12094109,0.00013972,2]
[420330425,1775973038030,-2016.05325035,0.00013973,2]
[420330429,1775973039911,-644.20590704,0.00013973,2]
[420330430,1775973040127,-688.8580236,0.00013973,2]
[420330431,1775973040162,-5227.45209431,0.00013973,2]
[420330432,1775973040196,-13645.90841532,0.00014073,2]
[420330433,1775973040206,-3782.52146625,0.00014073,2]
[420330434,1775973040246,-505.45933216,0.00014073,2]
[420330435,1775973040263,-500.0,0.0001415,2]
[420330436,1775973040302,-500.0,0.0001415,2]
[420330437,1775973040335,-500.0,0.0001415,2]
[420330438,1775973040362,-500.0,0.0001415,2]
[420330439,1775973040388,-500.0,0.0001415,2]
[420330440,1775973040409,-500.0,0.00014173,2]
[420330441,1775973040443,-150.0,0.000143,2]
[420330442,1775973040469,-500.0,0.00014473,2]
[420330443,1775973040484,-500.0,0.00014473,2]
[420330444,1775973040495,-500.0,0.00014473,2]
[420330445,1775973040519,-500.0,0.00014473,2]
[420330446,1775973040529,-500.61323764,0.00014473,2]
[420330447,1775973040538,-500.0,0.00014473,2]
[420330448,1775973040559,-500.6016971,0.00014473,2]
[420330449,1775973040568,-335.57,0.00014499,2]
[420330450,1775973040577,-500.0,0.00014721,2]
[420330451,1775973040591,-335.57,0.00014773,2]
[420330452,1775973040605,-150.0,0.00014783,2]
[420330453,1775973040614,-300.0,0.00014959,2]
[420330454,1775973040623,-300.0,0.00014959,2]
[420330455,1775973040635,-300.0,0.00014959,2]
[420330456,1775973040648,-2588.3404461,0.00014959,2]
[420330457,1775973040658,-300.0,0.00014959,2]
[420330458,1775973040667,-300.0,0.00014959,2]
[420330459,1775973040676,-500.0,0.00014959,2]
[420330460,1775973040689,-500.0,0.00014959,2]
[420330461,1775973040699,-500.0,0.00014959,2]
[420330462,1775973040708,-500.0,0.00014959,2]
[420330463,1775973040717,-500.0,0.00014959,2]
[420330464,1775973040726,-371.21979584,0.00014959,2]
[420330465,1775973040744,-2500.0,0.0001496,2]
[420330466,1775973040753,-2500.0,0.0001496,2]
[420330467,1775973040763,-2500.0,0.0001496,2]
[420330468,1775973040777,-2500.0,0.0001496,2]
[420330469,1775973040788,-205.10243061,0.0001496,2]
[420330470,1775973040797,-150.04166029,0.0001496,2]
[420330471,1775973040807,-354.0,0.00015013,2]
[420330472,1775973040817,-1100.25687957,0.00015021,2]
[420330473,1775973040831,-500.0,0.00015021,2]
[420330474,1775973040841,-1000.0,0.00015021,2]
[420330475,1775973040850,-335.57,0.00015047,2]
[420330476,1775973040859,-354.0,0.00015086,2]
[420330477,1775973040871,-354.0,0.00015087,2]
[420330478,1775973040881,-354.0,0.00015204,2]
[420330479,1775973040890,-354.0,0.00015268,2]
[420330480,1775973040899,-354.0,0.000153,2]
[420330481,1775973040911,-354.0,0.00015305,2]
[420330482,1775973040921,-2495.52000197,0.00015319,2]
[420330483,1775973040931,-335.57,0.00015321,2]
[420330484,1775973040940,-354.0,0.00015443,2]
[420330485,1775973040950,-403.46,0.00015471,2]
[420330486,1775973040963,-409.51,0.00015471,2]
[420330487,1775973040973,-150.0,0.00015471,2]
[420330488,1775973040982,-354.0,0.00015472,2]
[420330489,1775973040991,-150.4354,0.000155,2]
[420330490,1775973041001,-335.6,0.00015595,2]
[420330491,1775973041011,-354.0,0.00015629,2]
[420330492,1775973041020,-354.0,0.00015672,2]
[420330493,1775973041030,-354.0,0.00015834,2]
[420330494,1775973041039,-354.0,0.00015866,2]
[420330495,1775973041049,-500.0,0.00015873,2]
[420330496,1775973041061,-500.0,0.00015873,2]
[420330497,1775973041070,-500.0,0.00015873,2]
[420330498,1775973041079,-500.0,0.00015873,2]
[420330499,1775973041089,-500.0,0.00015873,2]
[420330500,1775973041099,-500.0,0.00015873,2]
[420330501,1775973041109,-354.0,0.00015895,2]
[420330503,1775973041118,-1000.0,0.000159,2]
[420330505,1775973041128,-46876.64545256,0.000159,2]
[420330507,1775973041140,-5018.19286338,0.0001596,2]
[420330509,1775973041151,-500.0,0.00015999,2]
[420330511,1775973041161,-500.0,0.00015999,2]
[420330513,1775973041170,-500.0,0.00015999,2]
[420330515,1775973041184,-500.0,0.00015999,2]
[420330517,1775973041194,-500.0,0.00015999,2]
[420330519,1775973041206,-500.0,0.00015999,2]
[420330521,1775973041215,-500.0,0.00015999,2]
[420330523,1775973041227,-500.0,0.00015999,2]
[420330525,1775973041240,-500.0,0.00015999,2]
[420330527,1775973041250,-500.0,0.00015999,2]
[420330528,1775973041260,-500.0,0.00015999,2]
[420330529,1775973041279,-500.0,0.00015999,2]
[420330530,1775973041289,-500.0,0.00015999,2]
[420330531,1775973041299,-500.0,0.00015999,2]
[420330532,1775973041311,-500.0,0.00015999,2]
[420330533,1775973041332,-500.0,0.00015999,2]
[420330534,1775973041342,-500.0,0.00015999,2]
[420330535,1775973041373,-503.22917875,0.00015999,2]
[420330536,1775973041383,-354.0,0.00016019,2]
[420330537,1775973041404,-351.46,0.0001606,2]
[420330538,1775973041423,-354.0,0.00016071,2]
[420330539,1775973041438,-354.0,0.00016216,2]
[420330540,1775973041451,-354.0,0.0001622,2]
[420330541,1775973041467,-354.0,0.00016233,2]
[420330542,1775973041481,-354.0,0.00016311,2]
[420330543,1775973041491,-354.0,0.00016379,2]
[420330544,1775973041510,-354.0,0.00016389,2]
[420330545,1775973041520,-503.02039303,0.00016421,2]
[420330546,1775973041529,-500.0,0.00016421,2]
[420330547,1775973041543,-504.12584196,0.00016421,2]
[420330548,1775973041558,-1000.0,0.00016421,2]
[420330549,1775973041567,-590.08638025,0.00016421,2]
[420330550,1775973041577,-1000.0,0.00016421,2]
[420330551,1775973041587,-500.0,0.00016438,2]
[420330552,1775973041603,-505.02035969,0.00016438,2]
[420330553,1775973041613,-354.0,0.0001644,2]
[420330554,1775973041623,-500.40308644,0.000165,2]
[420330555,1775973041641,-501.19161686,0.000165,2]
[420330556,1775973041652,-500.0,0.000165,2]
[420330557,1775973041661,-500.0,0.000165,2]
[420330558,1775973041674,-500.0,0.000165,2]
[420330559,1775973041687,-354.0,0.00016515,2]
[420330560,1775973041700,-354.0,0.00016559,2]
[420330561,1775973041711,-150.8721,0.000167,2]
[420330562,1775973041722,-1911.06,0.00016761,2]
[420330563,1775973041731,-1503.93571096,0.00016968,2]
[420330564,1775973041745,-1501.11813952,0.00016968,2]
[420330565,1775973041757,-272.88,0.00016993,2]
[420330566,1775973041767,-504.08436302,0.00017048,2]
[420330567,1775973041777,-1000.0,0.00017048,2]
[420330568,1775973041793,-504.22304107,0.00017048,2]
[420330569,1775973041803,-213.0,0.00017148,2]
[420330570,1775973041812,-158.47,0.00017175,2]
[420330571,1775973041829,-200.0,0.00017399,2]
[420330572,1775973041840,-1600.0,0.00017399,2]
[420330573,1775973041850,-500.0,0.00017498,2]
[420330574,1775973041862,-500.0,0.00017498,2]
[420330575,1775973041879,-13645.90841523,0.00017498,2]
[420330576,1775973041888,-3782.52146621,0.00017498,2]
[420330577,1775973041898,-1500.0,0.00017537,2]
[420330578,1775973041914,-1500.0,0.00017596,2]
[420330579,1775973041934,-365.77,0.00017728,2]
[420330580,1775973041948,-368.36,0.00017728,2]
[420330581,1775973042000,-243.93,0.00017728,2]
[420330582,1775973042028,-2006.66,0.00017838,2]
[420330583,1775973042043,-151.3101,0.000179,2]
[420330584,1775973042069,-1004.56564083,0.00018144,2]
[420330585,1775973042094,-213.0,0.00018148,2]
[420330586,1775973042131,-351.46,0.00018222,2]
[420330587,1775973042152,-505.45933209,0.0001852,2]
[420330588,1775973042181,-320.0,0.00019,2]
[420330589,1775973042211,-679.0,0.00019,2]
[420330590,1775973042239,-278.0,0.00019,2]
[420330591,1775973042273,-151.7493,0.000191,2]
[420330592,1775973042319,-213.0,0.00019148,2]
[420330593,1775973042336,-251.54510775,0.00019523,2]
[420330594,1775973042373,-1600.0,0.00019574,2]
[420330595,1775973042395,-222.0,0.0002,2]
[420330596,1775973042423,-320.0,0.0002,2]
[420330597,1775973042446,-679.0,0.0002,2]
[420330598,1775973042469,-1201.0,0.0002,2]
[420330600,1775973042479,-1050.25,0.0002,2]
[420330602,1775973042516,-278.0,0.0002,2]
[420330603,1775973042525,-915.0,0.0002,2]
[420330604,1775973042557,-365.0,0.0002,2]
[420330605,1775973042569,-364.0,0.0002,2]
[420330606,1775973042589,-213.0,0.00020148,2]
[420330607,1775973042610,-152.1899,0.000203,2]
[420330608,1775973042619,-351.46,0.00020385,2]
[420330609,1775973042634,-156.68,0.00020532,2]
[420330610,1775973042648,-204.273844,0.0002058,2]
[420330611,1775973042660,-158.47,0.0002061,2]
[420330612,1775973042672,-900.057,0.00020772,2]
[420330613,1775973042683,-414.0,0.00020772,2]
[420330614,1775973042693,-13645.90841523,0.00020923,2]
[420330615,1775973042705,-3782.52146621,0.00020923,2]
[420330616,1775973042717,-222.0,0.00021,2]
[420330617,1775973042727,-320.0,0.00021,2]
[420330618,1775973042739,-679.0,0.00021,2]
[420330619,1775973042749,-1201.0,0.00021,2]
[420330620,1775973042760,-278.0,0.00021,2]
[420330621,1775973042770,-915.0,0.00021,2]
[420330622,1775973042779,-365.0,0.00021,2]
[420330623,1775973042790,-364.0,0.00021,2]
[420330624,1775973042800,-300.0,0.00021,2]
[420330625,1775973042811,-700.17,0.00021021,2]
[420330626,1775973042820,-213.0,0.00021148,2]
[420330627,1775973042829,-396.89607824,0.00021258,2]
[420330628,1775973042840,-172.356056,0.00021479,2]
[420330629,1775973042852,-152.6317,0.000215,2]
[420330630,1775973042861,-1050.24,0.0002172,2]
[420330631,1775973042871,-1600.0,0.00021749,2]
[420330632,1775973042882,-255.29527567,0.00021784,2]
[420330633,1775973042892,-5000.0,0.00021918,2]
[420330634,1775973042904,-150.0,0.00021918,2]
[420330635,1775973042913,-222.0,0.00022,2]
[420330636,1775973042926,-320.0,0.00022,2]
[420330637,1775973042937,-679.0,0.00022,2]
[420330638,1775973042946,-1201.0,0.00022,2]
[420330639,1775973042958,-278.0,0.00022,2]
[420330640,1775973042970,-915.0,0.00022,2]
[420330641,1775973042981,-365.0,0.00022,2]
[420330642,1775973042990,-364.0,0.00022,2]
[420330643,1775973043004,-225.70275512,0.00022148,2]
[420330644,1775973043020,-2006.66,0.00022276,2]
[420330645,1775973043029,-164.17690918,0.00022298,2]
[420330646,1775973043043,-164.17690918,0.00022298,2]
[420330647,1775973043057,-198.39724283,0.00022298,2]
[420330648,1775973043067,-196.1684305,0.00022298,2]
[420330649,1775973043081,-196.1684305,0.00022298,2]
[420330650,1775973043090,-186.57729411,0.00022298,2]
[420330651,1775973043106,-150.09855332,0.00022466,2]
[420330653,1775973043115,-351.46,0.00022548,2]
[420330655,1775973043128,-185.81235828,0.0002255,2]
[420330657,1775973043137,-167.11380301,0.0002255,2]
[420330659,1775973043154,-366.74752774,0.0002255,2]
[420330660,1775973043167,-184.58686705,0.0002255,2]
[420330661,1775973043176,-207.76128198,0.0002255,2]
[420330662,1775973043189,-184.58686705,0.0002255,2]
[420330663,1775973043200,-223.76024312,0.00022629,2]
[420330664,1775973043210,-286.43738931,0.00022696,2]
[420330665,1775973043219,-153.0748,0.000227,2]
[420330666,1775973043232,-487.0,0.000227,2]
[420330667,1775973043244,-487.0,0.000227,2]
[420330668,1775973043254,-487.0,0.000227,2]
[420330669,1775973043264,-487.0,0.000227,2]
[420330670,1775973043274,-487.0,0.000227,2]
[420330671,1775973043284,-487.0,0.000227,2]
[420330672,1775973043293,-487.0,0.000227,2]
[420330673,1775973043303,-487.0,0.000227,2]
[420330674,1775973043313,-910.54,0.000227,2]
[420330675,1775973043325,-265.36742374,0.00022767,2]
[420330676,1775973043337,-273.04159607,0.00022886,2]
[420330677,1775973043348,-5000.0,0.000229,2]
[420330678,1775973043358,-505.45933209,0.00022966,2]
[420330679,1775973043373,-500.0,0.00022999,2]
[420330680,1775973043384,-222.0,0.00023,2]
[420330681,1775973043393,-320.0,0.00023,2]
[420330682,1775973043408,-679.0,0.00023,2]
[420330683,1775973043417,-1201.0,0.00023,2]
[420330684,1775973043431,-278.0,0.00023,2]
[420330685,1775973043443,-915.0,0.00023,2]
[420330686,1775973043457,-365.0,0.00023,2]
[420330687,1775973043470,-364.0,0.00023,2]
[420330688,1775973043486,-236.53569009,0.00023024,2]
[420330689,1775973043501,-255.23424536,0.00023024,2]
[420330690,1775973043514,-479.83037049,0.00023024,2]
[420330691,1775973043531,-287.87617874,0.00023195,2]
[420330692,1775973043545,-248.68134627,0.00023195,2]
[420330693,1775973043560,-500.0,0.0002321,2]
[420330694,1775973043580,-1369.8,0.00023578,2]
[420330695,1775973043595,-500.68363415,0.00023681,2]
[420330696,1775973043607,-191.152086,0.00023833,14]
[420330697,1775973043621,-153.5191,0.000239,2]
[420330698,1775973043638,-1600.0,0.00023924,2]
[420330699,1775973043651,-222.0,0.00024,2]
[420330700,1775973043663,-330.82829463,0.00024,2]
[420330701,1775973043681,-689.0,0.00024,2]
[420330702,1775973043695,-1201.0,0.00024,2]
[420330703,1775973043710,-283.0,0.00024,2]
[420330704,1775973043721,-915.0,0.00024,2]
[420330705,1775973043733,-365.0,0.00024,2]
[420330706,1775973043746,-364.0,0.00024,2]
[420330707,1775973043773,-231.58259095,0.00024125,2]
[420330708,1775973043782,-13645.90841523,0.00024349,2]
[420330709,1775973043795,-3782.52146621,0.00024349,2]
[420330710,1775973043813,-500.0,0.00024488,2]
[420330711,1775973043825,-400.53794242,0.00024558,2]
[420330712,1775973043837,-2153.0,0.00024658,5]
[420330713,1775973043858,-317.84,0.00024658,2]
[420330714,1775973043869,-255.02056372,0.00024658,2]
[420330715,1775973043879,-351.46,0.00024711,2]
[420330716,1775973043902,-470.0,0.00024799,5]
[420330717,1775973043914,-299.0,0.00024819,6]
[420330718,1775973043926,-185.35,0.00024819,7]
[420330719,1775973043956,-500.0,0.00024899,2]
[420330720,1775973043971,-500.0,0.00024899,2]
[420330721,1775973044034,-8300.09901349,0.0002498,2]
[420330722,1775973044731,-900.05641542,0.00020772,2]
[420330723,1775973044757,-2874.10998513,0.00020772,2]
[420330724,1775973044791,-0.83359945,0.00020772,2]
[420330725,1775973044802,-3775.0,0.00023772,2]
[420330726,1775973044816,-1699.89098651,0.0002498,2]
[420330727,1775973044825,-150.99,0.0002498,2]
[420330728,1775973044834,-9999.99,0.0002498,2]
[420330729,1775973044846,-1191.76,0.0002498,2]
[420330730,1775973044859,-9999.99,0.0002498,2]
[420330731,1775973044868,-234.11363508,0.00025,2]
[420330732,1775973044877,-1218.61145907,0.00025,2]
[420330733,1775973044889,-928.0,0.00025,2]
[420330734,1775973044898,-381.0,0.00025,2]
[420330735,1775973044910,-373.0,0.00025,2]
[420330736,1775973044919,-153.9648,0.000251,2]
[420330737,1775973044931,-272.88,0.00025455,2]
[420330738,1775973044942,-197.03,0.00025704,2]
[420330739,1775973044955,-546.1457768,0.00026027,2]
[420330740,1775973044965,-261.50266666,0.00026164,7]
[420330741,1775973044977,-154.4118,0.000263,2]
[420330742,1775973044991,-978.42,0.0002643,2]
[420330743,1775973045001,-150.8615,0.00026701,2]
[420330744,1775973045011,-2006.66,0.00026714,2]
[420330745,1775973045021,-351.46,0.00026874,2]
[420330746,1775973045043,-191.152086,0.00026942,14]
[420330747,1775973045052,-156.68,0.00027376,2]
[420330748,1775973045061,-257.66,0.00027397,2]
[420330749,1775973045083,-500.0,0.00027397,2]
[420330750,1775973045092,-500.0,0.00027397,2]
[420330751,1775973045101,-500.0,0.00027397,2]
[420330752,1775973045124,-317.84,0.00027397,2]
[420330753,1775973045135,-4015.05,0.00027397,10]
[420330754,1775973045144,-505.45933209,0.00027413,2]
[420330755,1775973045170,-154.86,0.000275,2]
[420330756,1775973045179,-176.01598962,0.00027616,2]
[420330757,1775973045465,-13645.90841523,0.00027774,2]
[420330758,1775973045493,-3782.52146621,0.00027774,2]
[420330759,1775973045505,-1153.44,0.00027856,7]
[420330760,1775973045528,-1118.84,0.00028692,7]
[420330761,1775973045554,-974.26,0.000287,14]
[420330762,1775973045571,-155.3096,0.000287,2]
[420330763,1775973045588,-351.46,0.00029037,2]
[420330764,1775973045601,-210.59242467,0.00029096,7]
[420330765,1775973045620,-204.273844,0.00029387,14]
[420330766,1775973045637,-974.26,0.000294,20]
[420330767,1775973045652,-1084.24,0.00029527,7]
[420330768,1775973045677,-150.0,0.00029534,2]
[420330769,1775973045693,-155.7604,0.000299,2]
[420330770,1775973045727,-500.0,0.00029999,2]
[420330771,1775973045746,-234.41147225,0.00029999,2]
[420330772,1775973045780,-196.63396164,0.00029999,2]
[420330773,1775973045814,-189.18362656,0.00029999,2]
[420330774,1775973045843,-197.43319721,0.00029999,2]
[420330775,1775973045895,-424.07364412,0.00029999,2]
[420330776,1775973045944,-317.84,0.00030137,2]
[420330777,1775973046029,-500.0,0.00030137,120]
[420330778,1775973046050,-272.88,0.00030525,2]
[420330780,1775973046070,-640.3983587,0.00030575,120]
[420330782,1775973046082,-197.021284,0.00030797,2]
[420330785,1775973046103,-500.0,0.00030958,2]
[420330787,1775973046112,-500.0,0.00030959,120]
[420330788,1775973046125,-150.0,0.00031011,2]
[420330790,1775973046143,-2006.66,0.00031153,2]
[420330792,1775973046153,-582.54,0.0003116,2]
[420330794,1775973046165,-500.0,0.00031199,2]